bitfinex/quotes_SOLUSD_20241113
["timestamp","ask_amount","ask_price","bid_price","bid_amount"]
[1731492528889,23.776884,206.39,206.37,0.1]
[1731492529068,46.2662742,206.38,206.35,0.1]
[1731492529265,22.4893902,206.38,206.35,0.1]
[1731492529491,23.776884,206.37,206.35,0.1]
[1731492529966,46.2662742,206.36,206.35,0.1]
[1731492530286,23.776884,206.35,206.33,0.1]
[1731492530794,46.2662742,206.38,206.37,0.1]
[1731492530965,22.4893902,206.41,206.37,0.1]
[1731492531169,22.4893902,206.43,206.42,0.1]
[1731492531591,22.6148802,206.43,206.42,0.1]
[1731492531891,22.6148802,206.43,206.31,0.1]
[1731492531892,0.12549,206.42,206.4,0.1]
[1731492532190,27.3340902,206.41,206.4,0.1]
[1731492532492,51.1109742,206.41,206.38,0.1]
[1731492532875,23.776884,206.4,206.38,0.1]
[1731492534095,28.621884,206.4,206.38,0.1]
[1731492535794,28.621884,206.4,206.35,0.1]
[1731492536373,28.621884,206.4,206.38,0.1]
[1731492536782,28.621884,206.4,206.35,0.1]
[1731492537070,23.776884,206.4,206.39,0.1]
[1731492537472,23.776884,206.4,206.36,0.1]
[1731492537678,23.776884,206.4,206.39,0.1]
[1731492537873,23.776884,206.4,206.37,0.1]
[1731492538074,23.776884,206.38,206.35,0.1]
[1731492538380,22.4893902,206.37,206.36,0.1]
[1731492538574,46.2662742,206.37,206.34,0.1]
[1731492538778,22.4893902,206.35,206.29,0.1]
[1731492538977,22.4893902,206.32,206.29,0.1]
[1731492539293,46.3917642,206.34,206.33,0.1]
[1731492540196,46.3917642,206.34,206.31,0.1]
[1731492540197,0.12549,206.33,206.31,0.1]
[1731492540378,23.902374,206.33,206.32,0.1]
[1731492540578,46.3917642,206.33,206.32,0.1]
[1731492541388,46.3917642,206.33,206.3,0.1]
[1731492541990,22.4893902,206.35,206.3,0.1]
[1731492542173,23.776884,206.35,206.34,0.1]
[1731492542379,23.902374,206.35,206.34,0.1]
[1731492542578,51.2378642,206.35,206.34,0.1]
[1731492542982,51.2378642,206.35,206.32,0.1]
[1731492543188,0.12549,206.32,206.29,0.1]
[1731492543481,28.622984,206.35,206.29,0.1]
[1731492543482,46.3917642,206.3,206.29,0.1]
[1731492543688,0.12549,206.28,206.27,0.1]
[1731492543885,22.6148802,206.28,206.27,0.1]
[1731492544086,46.3917642,206.28,206.27,0.1]
[1731492544281,27.4627802,206.28,206.22,0.1]
[1731492544481,22.4893902,206.24,206.23,0.1]
[1731492545094,46.3917642,206.24,206.23,0.1]
[1731492545483,22.4893902,206.3,206.29,0.1]
[1731492545798,22.4893902,206.3,206.2,0.1]
[1731492545799,22.4893902,206.32,206.31,0.1]
[1731492546002,22.6148802,206.32,206.31,0.1]
[1731492546506,0.12549,206.31,206.23,0.1]
[1731492546689,0.12549,206.24,206.23,0.1]
[1731492546889,46.2662742,206.27,206.26,0.1]
[1731492547489,46.3917642,206.27,206.26,0.1]
[1731492548407,23.902374,206.27,206.26,0.1]
[1731492548610,46.3917642,206.27,206.26,0.1]
[1731492548901,51.2397642,206.27,206.26,0.1]
[1731492551182,46.3917642,206.27,206.26,0.1]
[1731492551498,23.902374,206.27,206.26,0.1]
[1731492552086,46.3917642,206.27,206.26,0.1]
[1731492552502,51.2397642,206.27,206.26,0.1]
[1731492552705,23.902374,206.26,206.25,0.1]
[1731492553311,23.902374,206.26,206.23,0.1]
[1731492553492,46.3917642,206.24,206.23,0.1]
[1731492554503,23.902374,206.24,206.23,0.1]
[1731492555799,22.4893902,206.36,206.33,0.1]
[1731492556003,0.12549,206.35,206.33,0.1]
[1731492556191,4.8456,206.37,206.35,0.1]
[1731492556593,22.4893902,206.36,206.35,0.1]
[1731492556987,22.4893902,206.36,206.27,22.4893902]
[1731492556988,0.12549,206.35,206.33,0.1]
[1731492557308,22.6148802,206.34,206.33,0.1]
[1731492557802,46.3917642,206.34,206.33,0.1]
[1731492558401,51.2380642,206.34,206.33,0.1]
[1731492558596,28.748674,206.34,206.33,0.1]
[1731492558904,27.3342902,206.4,206.37,0.1]
[1731492559106,22.4893902,206.38,206.37,0.1]
[1731492559301,0.12549,206.37,206.34,0.1]
[1731492559500,0.12549,206.35,206.34,0.1]
[1731492560092,0.12549,206.34,206.32,0.1]
[1731492560303,46.3917642,206.33,206.32,0.1]
[1731492560503,28.748974,206.33,206.32,0.1]
[1731492561017,23.902374,206.33,206.32,0.1]
[1731492562218,27.3347902,206.39,206.32,0.1]
[1731492562402,27.3347902,206.39,206.36,0.1]
[1731492562708,0.12549,206.37,206.36,0.1]
[1731492563306,46.3917642,206.37,206.36,0.1]
[1731492564805,14.07215641,206.42,206.4,0.1]
[1731492565206,0.12549,206.41,206.4,0.1]
[1731492566008,23.902374,206.41,206.38,0.1]
[1731492566311,23.902374,206.38,206.36,0.1]
[1731492566620,37.97453041,206.37,206.36,0.1]
[1731492566823,23.902374,206.36,206.32,0.1]
[1731492567000,37.97453041,206.35,206.34,0.1]
[1731492567413,0.12549,206.34,206.32,0.1]
[1731492567614,23.902374,206.34,206.32,0.1]
[1731492567923,4.8456,206.37,206.32,0.1]
[1731492567924,37.97453041,206.33,206.32,0.1]
[1731492568400,23.902374,206.32,206.3,0.1]
[1731492568600,17.0597,206.37,206.23,27.1075]
[1731492568601,23.902374,206.3,206.26,0.1]
[1731492568827,28.750574,206.26,206.24,0.1]
[1731492569001,46.45572201,206.25,206.24,0.1]
[1731492569714,46.45572201,206.25,206.19,11.2153]
[1731492569715,0.12549,206.24,206.23,0.1]
[1731492570014,23.902374,206.24,206.23,0.1]
[1731492571224,28.751074,206.24,206.23,0.1]
[1731492571911,16.9611,206.36,206.32,0.1]
[1731492572113,22.55334801,206.33,206.28,0.1]
[1731492572308,16.9611,206.36,206.28,0.1]
[1731492572309,22.55334801,206.31,206.28,0.1]
[1731492572513,0.12549,206.28,206.26,0.1]
[1731492572821,22.67883801,206.27,206.26,0.1]
[1731492573606,46.45572201,206.27,206.26,0.1]
[1731492573820,0.12549,206.26,206.25,0.1]
[1731492574057,23.902374,206.26,206.25,0.1]
[1731492575707,22.55334801,206.29,206.27,0.1]
[1731492576006,6.73583895,206.38,206.18,26.7443]
[1731492576007,19.390037,206.39,206.36,0.1]
[1731492576216,4.8454,206.38,206.36,0.1]
[1731492576931,0.12549,206.37,206.36,0.1]
[1731492577234,11.1186,206.44,206.29,26.1969]
[1731492577235,4.8451,206.4,206.38,0.1]
[1731492577524,22.67883801,206.39,206.38,0.1]
[1731492578433,46.45572201,206.39,206.36,0.1]
[1731492578607,0.12549,206.36,206.34,0.1]
[1731492578808,46.45572201,206.35,206.32,0.1]
[1731492579019,22.55334801,206.41,206.39,0.1]
[1731492579221,4.8449,206.4,206.39,0.1]
[1731492579416,4.97039,206.4,206.39,0.1]
[1731492580309,23.902374,206.39,206.34,0.1]
[1731492580508,46.45572201,206.35,206.34,0.1]
[1731492581313,46.45572201,206.35,206.33,0.1]
[1731492581314,23.776884,206.34,206.33,0.1]
[1731492581514,46.33023201,206.34,206.33,0.1]
[1731492581933,46.33023201,206.34,206.29,0.1]
[1731492582113,22.55334801,206.32,206.31,0.1]
[1731492582427,22.55334801,206.32,206.24,28.4601]
[1731492582428,23.776884,206.31,206.29,0.1]
[1731492582731,46.33023201,206.3,206.29,0.1]
[1731492583523,51.17753201,206.3,206.29,0.1]
[1731492585738,51.17753201,206.3,206.26,0.1]
[1731492585937,46.33023201,206.27,206.26,0.1]
[1731492586829,43.776884,206.25,206.19,0.1]
[1731492587034,46.33023201,206.2,206.19,0.1]
[1731492587534,51.17983201,206.2,206.19,0.1]
[1731492589215,23.776884,206.19,206.16,0.1]
[1731492589419,46.33023201,206.17,206.16,0.1]
[1731492589826,22.55334801,206.17,206.16,0.1]
[1731492590035,46.33023201,206.17,206.16,0.1]
[1731492590234,46.33023201,206.17,206.14,0.1]
[1731492590439,46.33023201,206.15,206.14,0.1]
[1731492591333,51.18103201,206.15,206.14,0.1]
[1731492591937,51.18103201,206.15,206.12,0.1]
[1731492592122,22.55334801,206.13,206.12,0.1]
[1731492592323,22.55334801,206.13,206.05,27.1179]
[1731492592324,23.776884,206.12,206.1,0.1]
[1731492592522,23.776884,206.11,206.1,0.1]
[1731492597142,23.776884,206.11,206.06,0.1]
[1731492597143,23.776884,206.09,206.06,0.1]
[1731492597452,23.776884,206.06,206.05,0.1]
[1731492600342,22.55334801,206.09,206.05,0.1]
[1731492600563,22.55334801,206.11,206.1,0.1]
[1731492601025,22.55334801,206.11,206.02,23.03915151]
[1731492601026,51.18193201,206.11,206.06,0.1]
[1731492601227,22.55334801,206.07,206.06,0.1]
[1731492601422,46.33023201,206.07,206.06,0.1]
[1731492601862,23.776884,206.07,206.06,0.1]
[1731492603339,22.55334801,206.12,206.11,0.1]
[1731492603544,22.55334801,206.17,206.16,0.1]
[1731492603737,22.55334801,206.19,206.16,0.1]
[1731492603953,22.55334801,206.21,206.2,0.1]
[1731492604130,22.67883801,206.21,206.2,0.1]
[1731492604329,22.55334801,206.21,206.17,0.1]
[1731492604528,22.55334801,206.18,206.17,0.1]
[1731492604733,22.67883801,206.18,206.17,0.1]
[1731492604931,22.55334801,206.18,206.17,0.1]
[1731492605248,27.40344801,206.18,206.17,0.1]
[1731492605627,0.12549,206.17,206.15,0.1]
[1731492605833,0.12549,206.16,206.15,0.1]
[1731492606537,46.45572201,206.16,206.15,0.1]
[1731492607634,51.30632201,206.16,206.15,0.1]
[1731492607849,23.902374,206.16,206.15,0.1]
[1731492608849,51.30632201,206.16,206.15,0.1]
[1731492609237,23.902374,206.15,206.13,0.1]
[1731492609539,28.753274,206.15,206.13,0.1]
[1731492610765,23.776884,206.18,206.17,0.1]
[1731492610948,28.752474,206.18,206.17,0.1]
[1731492611249,23.902374,206.18,206.17,0.1]
[1731492611639,4.8496,206.2,206.17,0.1]
[1731492611848,27.40274801,206.22,206.21,0.1]
[1731492612843,19.07471378,206.22,206.21,0.1]
[1731492613630,42.85159778,206.22,206.21,0.1]
[1731492615435,23.776884,206.22,206.21,0.1]
[1731492615636,4.8486,206.25,206.24,0.1]
[1731492616139,4.97409,206.25,206.24,0.1]
[1731492616849,28.750974,206.25,206.24,0.1]
[1731492618852,42.85079778,206.25,206.24,0.1]
[1731492621756,23.902374,206.24,206.22,0.1]
[1731492621941,38.00219778,206.23,206.22,0.1]
[1731492623668,23.902374,206.2,206.11,0.1]
[1731492623964,23.902374,206.11,206.03,28.3603]
[1731492624148,23.902374,206.08,206.03,28.3603]
[1731492624347,14.09982378,206.11,206.07,0.1]
[1731492624550,14.09982378,206.09,206.03,28.3603]
[1731492624863,23.776884,206.1,206.03,28.3603]
[1731492624864,0.12549,206.07,206.03,28.3603]
[1731492625867,4.97829,206.07,206.06,0.1]
[1731492626045,0.12549,206.07,206.06,0.1]
[1731492626457,23.776884,206.06,206.04,0.1]
[1731492626656,37.87670778,206.06,206.04,0.1]
[1731492626971,0.12549,206.05,206.04,0.1]
[1731492627843,28.755674,206.05,206.04,0.1]
[1731492628260,0.12549,206.03,206.02,0.4858035]
[1731492628461,46.49580487,206.03,206.02,0.4858035]
[1731492628975,22.59343087,206.09,206.08,0.1]
[1731492629147,46.37031487,206.09,206.08,0.1]
[1731492629655,0.12549,206.09,206.08,0.1]
[1731492629865,22.59343087,206.11,206.08,0.1]
[1731492629866,22.59343087,206.13,206.08,0.1]
[1731492630072,22.59343087,206.13,206.11,0.1]
[1731492630255,22.59343087,206.15,206.11,0.1]
[1731492630454,22.59343087,206.15,206.14,0.1]
[1731492630972,22.71892087,206.15,206.14,0.1]
[1731492631370,0.12549,206.14,206.12,0.1]
[1731492631678,46.49580487,206.13,206.12,0.1]
[1731492631849,51.34710487,206.13,206.12,0.1]
[1731492632049,9.66026976,206.2,206.12,0.1]
[1731492632358,22.59343087,206.2,206.17,0.1]
[1731492632553,22.59343087,206.2,206.15,0.1]
[1731492632554,0.12549,206.17,206.15,0.1]
[1731492632761,22.59343087,206.2,206.05,0.1]
[1731492632762,0.12549,206.15,206.11,0.1]
[1731492632962,0.12549,206.15,206.14,0.1]
[1731492633160,22.59343087,206.15,206.12,0.1]
[1731492633355,22.71892087,206.13,206.12,0.1]
[1731492633555,23.902374,206.12,206.1,0.1]
[1731492633760,46.49580487,206.11,206.1,0.1]
[1731492633968,51.34750487,206.11,206.1,0.1]
[1731492634679,23.902374,206.1,206.09,0.1]
[1731492634859,23.902374,206.1,206.07,0.1]
[1731492635174,46.49580487,206.08,206.07,0.1]
[1731492635775,23.902374,206.07,206.06,0.1]
[1731492635977,28.755074,206.07,206.06,0.1]
[1731492637087,28.755074,206.07,206.05,0.1]
[1731492637755,22.71892087,206.06,206.05,0.1]
[1731492637955,23.902374,206.05,206.03,0.1]
[1731492638768,23.776884,206.05,206.03,0.1]
[1731492638969,23.776884,206.07,206.03,0.1]
[1731492639170,22.59343087,206.14,206.1,0.1]
[1731492639486,22.59343087,206.14,206.02,0.5858035]
[1731492639487,22.59343087,206.16,206.14,0.1]
[1731492639665,22.59343087,206.18,206.14,0.1]
[1731492639870,31.524265,206.23,206.11,0.1]
[1731492639871,22.59343087,206.16,206.11,0.1]
[1731492640165,22.71892087,206.12,206.11,0.1]
[1731492640775,22.71892087,206.12,206.09,0.1]
[1731492640776,0.12549,206.11,206.09,0.1]
[1731492640964,46.49580487,206.1,206.09,0.1]
[1731492641469,23.902374,206.09,206.06,0.1]
[1731492641664,23.902374,206.09,206.08,0.1]
[1731492641866,28.754574,206.09,206.04,0.1]
[1731492642071,28.754574,206.09,206.07,0.1]
[1731492642580,23.902374,206.07,206.04,0.1]
[1731492643085,23.902374,206.07,206.06,0.1]
[1731492643966,28.755074,206.07,206.06,0.1]
[1731492644466,28.755074,206.07,206.02,0.4858035]
[1731492644467,28.755074,206.07,206.04,0.1]
[1731492644667,28.755074,206.07,206.06,0.1]
[1731492645381,51.34850487,206.07,206.06,0.1]
[1731492645678,28.755074,206.07,206.06,0.1]
[1731492646588,23.902374,206.07,206.06,0.1]
[1731492646765,51.34850487,206.07,206.06,0.1]
[1731492647082,51.34850487,206.07,206.04,0.1]
[1731492647290,22.71892087,206.05,206.04,0.1]
[1731492647582,46.49580487,206.05,206.04,0.1]
[1731492647768,23.902374,206.05,206.04,0.1]
[1731492648286,22.59343087,206.09,206.08,0.1]
[1731492648666,27.57112087,206.09,206.08,0.1]
[1731492648887,19.09679054,206.09,206.08,0.1]
[1731492649586,42.87367454,206.09,206.08,0.1]
[1731492650279,38.02147454,206.09,206.08,0.1]
[1731492650475,23.902374,206.09,206.08,0.1]
[1731492650674,36.3781,206.17,206.08,0.1]
[1731492650675,14.11910054,206.13,206.08,0.1]
[1731492650873,4.8498,206.19,206.14,0.1]
[1731492651086,0.12549,206.15,206.14,0.1]
[1731492651474,14.11910054,206.16,206.14,0.1]
[1731492651676,0.12549,206.15,206.14,0.1]
[1731492652384,0.12549,206.17,206.14,0.1]
[1731492652882,23.902374,206.17,206.16,0.1]
[1731492653065,14.11910054,206.2,206.19,0.1]
[1731492653473,0.12549,206.19,206.13,0.1]
[1731492653683,0.12549,206.19,205.84,24.58891523]
[1731492653684,0.12549,206.12,206.09,0.1]
[1731492653884,0.12549,206.12,206.02,26.5604035]
[1731492653885,28.23820108,206.1,206.04,0.1]
[1731492654092,28.23820108,206.1,206.02,0.4858035]
[1731492654093,14.11910054,206.05,206.02,0.4858035]
[1731492654295,14.11910054,206.03,206.02,0.4858035]
[1731492654688,14.11910054,206.05,206.02,0.4858035]
[1731492655066,14.11910054,206.05,205.92,0.1]
[1731492655067,23.776884,206.02,205.92,0.1]
[1731492655272,23.776884,205.99,205.98,0.1]
[1731492655979,28.631484,205.99,205.98,0.1]
[1731492656487,28.631484,205.99,205.92,0.1]
[1731492656688,37.89598454,205.93,205.92,0.1]
[1731492656888,46.40055148,205.93,205.92,0.1]
[1731492657587,22.62366748,205.93,205.92,0.1]
[1731492657798,22.62366748,205.95,205.92,0.1]
[1731492658088,27.47966748,205.93,205.92,0.1]
[1731492658274,46.40055148,205.93,205.92,0.1]
[1731492661192,23.776884,205.92,205.91,0.1]
[1731492663273,28.633284,205.92,205.89,0.1]
[1731492663489,28.633284,205.92,205.91,0.1]
[1731492664403,28.633284,205.92,205.88,0.1]
[1731492664578,22.62366748,205.91,205.9,0.1]
[1731492664780,51.25705148,205.91,205.88,0.1]
[1731492664972,23.776884,205.88,205.86,0.1]
[1731492665175,46.40055148,205.87,205.86,0.1]
[1731492667592,23.776884,205.86,205.85,0.1]
[1731492669989,4.8579,205.85,205.83,0.1]
[1731492670189,46.40055148,205.84,205.83,0.1]
[1731492671410,4.8583,205.83,205.81,0.5858035]
[1731492671585,46.40055148,205.82,205.81,0.5858035]
[1731492672794,22.62366748,205.84,205.83,0.1]
[1731492673297,27.48086748,205.88,205.87,0.1]
[1731492673493,27.60635748,205.88,205.87,0.1]
[1731492673678,22.74915748,205.88,205.87,0.1]
[1731492674190,22.62366748,205.88,205.87,0.1]
[1731492674400,22.74915748,205.88,205.87,0.1]
[1731492674589,46.52604148,205.88,205.87,0.1]
[1731492674787,51.38314148,205.88,205.87,0.1]
[1731492674987,51.38314148,205.88,205.85,0.1]
[1731492674988,23.776884,205.87,205.85,0.1]
[1731492675187,22.62366748,205.86,205.85,0.1]
[1731492675481,22.62366748,205.86,205.83,0.1]
[1731492675482,46.40055148,205.86,205.83,0.1]
[1731492675685,22.62366748,205.84,205.83,0.1]
[1731492675886,46.40055148,205.84,205.83,0.1]
[1731492677901,22.62366748,205.9,205.89,0.1]
[1731492678587,27.48036748,205.9,205.89,0.1]
[1731492678789,50.10403496,205.9,205.87,0.1]
[1731492678981,22.62366748,205.88,205.87,0.1]
[1731492680097,22.74915748,205.88,205.84,0.1]
[1731492680302,22.62366748,205.85,205.84,0.1]
[1731492680899,46.40055148,205.85,205.84,0.1]
[1731492681101,51.25845148,205.85,205.83,0.1]
[1731492681286,46.40055148,205.84,205.81,0.5858035]
[1731492681489,46.40055148,205.82,205.81,0.5858035]
[1731492683084,51.25915148,205.82,205.81,0.5858035]
[1731492683902,46.40055148,205.82,205.81,0.5858035]
[1731492684806,162.0,205.86,205.81,0.5858035]
[1731492684807,22.62366748,205.84,205.81,0.5858035]
[1731492684984,22.62366748,205.9,205.89,0.1]
[1731492685496,22.74915748,205.9,205.89,0.1]
[1731492685692,22.74915748,205.9,205.87,0.1]
[1731492686007,22.62366748,205.88,205.87,0.1]
[1731492686203,46.40055148,205.88,205.87,0.1]
[1731492686641,46.40055148,205.88,205.81,0.4858035]
[1731492686642,22.62366748,205.9,205.89,0.1]
[1731492686814,22.62366748,205.92,205.91,0.1]
[1731492686998,22.74915748,205.92,205.91,0.1]
[1731492687500,22.74915748,205.92,205.89,0.1]
[1731492687696,22.62366748,205.9,205.87,0.1]
[1731492687901,46.40055148,205.88,205.87,0.1]
[1731492688904,42.78164667,205.88,205.87,0.1]
[1731492690095,4.8555,205.95,205.94,0.1]
[1731492690405,19.00316267,205.95,205.92,0.1]
[1731492690613,14.14766267,205.93,205.92,0.1]
[1731492690806,22.7480081,205.93,205.92,0.1]
[1731492691603,22.7480081,205.93,205.9,0.1]
[1731492691810,46.3994021,205.91,205.9,0.1]
[1731492692005,4.8569,205.89,205.88,0.1]
[1731492692197,23.776884,205.88,205.86,0.1]
[1731492692403,4.8555,205.96,205.95,0.1]
[1731492693209,22.6225181,205.98,205.97,0.1]
[1731492693513,27.4773181,205.98,205.97,0.1]
[1731492694608,51.3796921,205.98,205.97,0.1]
[1731492695590,23.776884,205.97,205.95,0.1]
[1731492695811,22.6225181,205.96,205.95,0.1]
[1731492696116,51.2547021,205.96,205.95,0.1]
[1731492698603,51.2547021,205.96,205.91,10.5931]
[1731492698604,23.776884,205.95,205.93,0.1]
[1731492698804,23.776884,205.93,205.91,0.1]
[1731492698997,4.8553,205.96,205.83,25.6277]
[1731492698998,46.3994021,205.92,205.88,0.1]
[1731492699197,22.6225181,205.89,205.88,0.1]
[1731492699604,46.3994021,205.89,205.88,0.1]
[1731492700117,28.633784,205.89,205.88,0.1]
[1731492700314,162.0,205.95,205.91,0.1]
[1731492700315,23.776884,205.93,205.91,0.1]
[1731492700615,0.12549,205.92,205.91,0.1]
[1731492702107,4.98169,205.92,205.88,0.1]
[1731492702417,4.98169,205.92,205.91,0.1]
[1731492702418,28.758574,205.92,205.91,0.1]
[1731492702604,51.3810921,205.92,205.91,0.1]
[1731492704024,23.776884,205.91,205.9,0.1]
[1731492704324,46.3994021,205.91,205.9,0.1]
[1731492704504,51.2558021,205.91,205.9,0.1]
[1731492705112,23.776884,205.91,205.9,0.1]
[1731492705313,27.4777181,205.97,205.96,0.1]
[1731492705715,27.4777181,205.97,205.84,0.1]
[1731492705716,27.6032081,205.97,205.94,0.1]
[1731492705924,4.98069,205.97,205.91,0.1]
[1731492706221,22.6225181,205.92,205.91,0.1]
[1731492706524,46.3994021,205.92,205.91,0.1]
[1731492706823,51.2556021,205.92,205.91,0.1]
[1731492708122,23.776884,205.92,205.91,0.1]
[1731492708624,22.6225181,205.94,205.93,0.1]
[1731492708807,27.4782181,205.94,205.93,0.1]
[1731492709006,27.6037081,205.94,205.93,0.1]
[1731492709928,51.3805921,205.94,205.93,0.1]
[1731492710906,42.89715637,205.94,205.93,0.1]
[1731492712011,23.776884,205.93,205.88,0.1]
[1731492712227,37.91596637,205.89,205.88,0.1]
[1731492713111,42.77286637,205.89,205.88,0.1]
[1731492715011,42.77286637,205.89,205.83,25.6277]
[1731492715012,23.776884,205.88,205.87,0.1]
[1731492715231,37.91596637,205.88,205.85,0.1]
[1731492715526,37.91596637,205.86,205.85,0.1]
[1731492716110,23.776884,205.85,205.83,0.1]
[1731492716305,23.776884,205.83,205.81,0.5858035]
[1731492716520,14.13908237,205.84,205.81,0.5858035]
[1731492716920,14.13908237,205.82,205.81,0.5858035]
[1731492717312,37.91596637,205.82,205.81,0.5858035]
[1731492718224,37.91596637,205.82,205.81,0.4858035]
[1731492718731,37.91596637,205.82,205.81,0.5858035]
[1731492719124,42.77456637,205.82,205.81,0.5858035]
[1731492719626,42.77456637,205.82,205.81,0.4858035]
[1731492721236,42.77456637,205.82,205.81,0.5858035]
[1731492721629,162.0,205.86,205.81,0.5858035]
[1731492721630,18.99718237,205.84,205.83,0.1]
[1731492721932,0.12549,205.87,205.85,0.1]
[1731492722131,14.13908237,205.86,205.85,0.1]
[1731492723121,18.99668237,205.86,205.85,0.1]
[1731492723321,42.77356637,205.86,205.85,0.1]
[1731492723528,23.776884,205.85,205.81,0.5858035]
[1731492723838,37.91596637,205.82,205.81,0.5858035]
[1731492724422,37.91596637,205.82,205.81,0.4858035]
[1731492724626,37.91596637,205.82,205.81,0.5858035]
[1731492725221,28.635484,205.82,205.81,0.4858035]
[1731492725423,42.77456637,205.82,205.81,0.5858035]
[1731492725636,42.77456637,205.82,205.81,0.4858035]
[1731492726842,23.776884,205.81,205.77,0.1]
[1731492727135,42.77546637,205.78,205.77,0.1]
[1731492727326,2.12222657,205.86,205.74,10.3418]
[1731492727327,42.77516637,205.8,205.79,0.1]
[1731492727529,37.91596637,205.8,205.79,0.1]
[1731492727838,28.635884,205.8,205.79,0.1]
[1731492728221,0.12549,205.87,205.85,0.1]
[1731492728416,14.13908237,205.86,205.85,0.1]
[1731492728726,18.99688237,205.86,205.85,0.1]
[1731492728934,18.99688237,205.86,205.83,0.1]
[1731492729127,14.13908237,205.84,205.83,0.1]
[1731492729517,37.91596637,205.84,205.83,0.1]
[1731492730745,14.13908237,205.86,205.85,0.1]
[1731492730931,0.12549,205.87,205.85,0.1]
[1731492731239,14.13908237,205.86,205.85,0.1]
[1731492732339,37.91596637,205.86,205.85,0.1]
[1731492732641,0.12549,205.87,205.85,0.1]
[1731492735752,0.12549,205.87,205.86,14.13908237]
[1731492736223,0.12549,205.87,205.86,14.23908237]
[1731492737053,0.12549,205.87,205.85,0.1]
[1731492737649,0.12549,205.87,205.85,0.2]
[1731492738337,0.12549,205.87,205.86,14.13908237]
[1731492740627,0.12549,205.87,205.85,0.1]
[1731492742539,4.98289,205.87,205.85,0.1]
[1731492742931,23.776884,205.86,205.85,0.1]
[1731492743141,37.91596637,205.86,205.83,0.1]
[1731492743344,37.91596637,205.84,205.81,0.1]
[1731492743550,18.99768237,205.82,205.81,0.1]
[1731492743854,42.77456637,205.82,205.81,0.1]
[1731492744157,42.77456637,205.82,205.74,25.16598237]
[1731492744158,42.77456637,205.82,205.79,0.1]
[1731492744338,23.776884,205.79,205.77,0.1]
[1731492744664,37.91596637,205.78,205.77,0.1]
[1731492746258,37.91596637,205.78,205.72,25.9434]
[1731492746259,4.8592,205.8,205.79,0.1]
[1731492746446,28.636084,205.8,205.79,0.1]
[1731492748746,23.776884,205.8,205.79,0.1]
[1731492749845,42.77496637,205.8,205.79,0.1]
[1731492750744,42.77496637,205.8,205.77,0.1]
[1731492750956,23.776884,205.79,205.77,0.1]
[1731492751564,42.77546637,205.78,205.77,0.1]
[1731492757666,28.636384,205.78,205.77,0.1]
[1731492757850,18.99828237,205.8,205.77,0.1]
[1731492758050,42.77516637,205.8,205.79,0.1]
[1731492758241,18.99668237,205.86,205.84,0.1]
[1731492758557,19.12197237,205.87,205.86,0.1]
[1731492759267,4.98289,205.87,205.86,0.1]
[1731492759955,28.759774,205.87,205.86,0.1]
[1731492760457,42.89885637,205.87,205.86,0.1]
[1731492760840,23.902374,205.87,205.86,0.1]
[1731492761942,0.12549,205.87,205.86,0.1]
[1731492763268,0.12549,205.87,205.86,27.5462]
[1731492763468,4.8549,205.98,205.97,0.1]
[1731492763674,4.8538,206.02,206.0,0.1]